Cogmind - Beta 17 @@@ ROGUE MODE // 2026.06.29 @ 02:04:05 Player: OBLIQUE Result: Escaped! Performance ------------- Evolutions (9) 4500 Regions Visited (23) 4600 Robots Destroyed (296) 1480 Value Destroyed (11826) 11826 Prototype IDs (71) 1420 Alien Tech Used (1) 200 Bonus (11020) 11020 TOTAL SCORE: 35046 Bonus ------- High Alert Combat Kills 880 Follower Combat Kills 359 Aligned with FarCom 300 Met Data Miner 300 Met Warlord at Base 500 MAIN.C Attacked Warlord 500 Warlord Defense Kills 1654 Met Warlord at Research 2000 Invited to Help at Command 2000 Win 3000 Friendly Fire -473 Cogmind --------- Core Integrity 1346/1600 Matter 249/300 Energy 7/100 System Corruption 14% Temperature Cool (14) Movement Treading (170) Location To Epsilon Eridani Parts ------- > --- POWER (2) -------- (None) > --- PROPULSION (6) --- Heavy Siege Treads High-density Centrium Heavy Treads Myomer Leg Centrium Leg > --- UTILITY (12) ----- Power Amplifier Advanced Heat Sink Advanced Visual Processing Unit Experimental Targeting Computer Advanced Target Analyzer Experimental Core Analyzer Improved Armor Integrity Analyzer Improved Weapon Cycler Centrium Light Armor Plating Graphene Brace (fused) High-powered Tractor Beam > --- WEAPON (5) ------- Enhanced Quantum Rifle Compact Linear Accelerator Compact Linear Accelerator > --- INVENTORY (5) ---- Myomer Leg Myomer Leg Advanced Target Analyzer Advanced Remote Datajack Peak State ------------ > --- POWER ------------ Quantum Reactor Improved Quantum Reactor > --- PROPULSION ------- Heavy Siege Treads Advanced Heavy Siege Treads High-density Centrium Heavy Treads > --- UTILITY ---------- Advanced Heat Sink Experimental Heat Sink Advanced Coolant Injector Advanced Visual Processing Unit Experimental Targeting Computer Experimental Core Analyzer Improved Armor Integrity Analyzer Improved Weapon Cycler Centrium Light Armor Plating Improved Powered Armor Improved Powered Armor Graphene Brace > --- WEAPON ----------- Enhanced Quantum Rifle Enhanced Quantum Rifle Helical Railgun Compact Linear Accelerator Compact Linear Accelerator > --- INVENTORY -------- Heavy Siege Treads Enhanced Biometal Leg Enhanced Quantum Rifle Advanced Remote Datajack [Rating: 201] Favorites ----------- Power Nuclear Core Engine Reinforced Deuterium Engine Power Core Nuclear Core Reactor Quantum Reactor Propulsion Light Treads Treads Light Treads Leg Flexi-carbon Leg Wheel Centrium Wheel Hover Unit Combat Antigrav System Flight Unit VTOL Module Utility System Shield Device Advanced Heat Sink Storage Medium Storage Unit Processor Improved Armor Integrity Analyzer Hackware System Shield Protection Improved Powered Armor Weapon Dirty Datajack Energy Gun Enhanced Quantum Rifle Energy Cannon Improved EM Pulse Cannon Ballistic Gun Minigun Ballistic Cannon Compact Linear Accelerator Launcher Grenade Launcher Special Weapon RU-N14's Throwing Claymores v3 Impact Weapon Heavy Flail Slashing Weapon Greatsword Piercing Weapon Vortex Lance Special Melee Weapon Dirty Datajack Build | -11 -10 -9 -9 -9 -8 -8 -7 -7 -7 -7 -6 -6 -5 -5 -5 -4 -4 -4 -4 -3 -3 -2 -1 ------- Run | Yrd Mat Mat Min Exi Min Mat Fac Low Low Dat Pro Fac Fac Was Fac Fac Upp Upp War Pro Res Res Acc Slots Evolved 18 | . . 2 . . . 2 2 . . . . 2 2 . . 2 . . . . 2 2 2 Power 1 | . . . . . . . . . . . . 1 . . . . . . . . . . . Propulsion 4 | . . . . . . . . . . . . 1 . . . 1 . . . . . 1 1 Utility 10 | . . . . . . 2 2 . . . . . 1 . . 1 . . . . 2 1 1 Weapon 3 | . . 2 . . . . . . . . . . 1 . . . . . . . . . . Parts Attached 271 | 7 4 23 . 1 . 17 4 13 6 . 9 24 1 5 2 17 1 9 28 2 8 71 19 Power 39 | 1 2 2 . . . 3 . . . . . 5 . 1 . 4 . 1 1 . . 14 5 Engine 6 | 1 2 . . . . 1 . . . . . 1 . . . 1 . . . . . . . Core 8 | . . 2 . . . 2 . . . . . 3 . . . . . 1 . . . . . Reactor 25 | . . . . . . . . . . . . 1 . 1 . 3 . . 1 . . 14 5 Propulsion 72 | 2 2 6 . . . 4 . 5 2 . 4 6 . . . 7 . 2 6 . 3 19 4 Treads 29 | 2 2 6 . . . 4 . 1 . . . 1 . . . . . . 4 . 1 7 1 Leg 19 | . . . . . . . . 1 1 . 4 4 . . . . . . 1 . 2 3 3 Wheel 11 | . . . . . . . . 1 . . . . . . . 6 . 2 1 . . 1 . Hover 9 | . . . . . . . . 1 . . . . . . . . . . . . . 8 . Flight 4 | . . . . . . . . 1 1 . . 1 . . . 1 . . . . . . . Utility 76 | 2 . 4 . . . 3 2 4 . . 1 3 1 3 2 3 . 3 12 1 5 19 8 Device 39 | 1 . 2 . . . . . 1 . . 1 2 1 3 2 3 . 1 5 1 4 6 6 Storage 4 | 1 . 1 . . . . . 1 . . . . . . . . . 1 . . . . . Processor 10 | . . . . . . . . . . . . . . . . . . 1 1 . . 6 2 Hackware 12 | . . 1 . . . 2 2 2 . . . 1 . . . . . . 3 . 1 . . Protection 11 | . . . . . . 1 . . . . . . . . . . . . 3 . . 7 . Artifact . | . . . . . . . . . . . . . . . . . . . . . . . . Weapon 84 | 2 . 11 . 1 . 7 2 4 4 . 4 10 . 1 . 3 1 3 9 1 . 19 2 Energy Gun 20 | 1 . 6 . . . . 1 2 . . . 2 . . . . . . . . . 6 2 Energy Cannon 8 | . . . . . . 3 . 1 . . 1 1 . . . . . 1 1 . . . . Ballistic Gun 23 | 1 . 3 . 1 . . 1 . 2 . . 5 . . . 1 1 1 . . . 7 . Ballistic Cannon 5 | . . . . . . . . . . . 2 . . . . . . . 1 . . 2 . Launcher 7 | . . 2 . . . 4 . . . . . . . . . . . . . . . 1 . Special Weapon 4 | . . . . . . . . . . . . . . . . . . . 3 . . 1 . Impact Weapon 1 | . . . . . . . . . . . . . . . . 1 . . . . . . . Slashing Weapon 7 | . . . . . . . . 1 1 . 1 . . . . . . . 2 1 . 1 . Piercing Weapon 4 | . . . . . . . . . . . . . . . . 1 . . 2 . . 1 . Special Melee Weapon 5 | . . . . . . . . . 1 . . 2 . 1 . . . 1 . . . . . Unidentified Prototypes 33 | . . 2 . . . 2 . . . . . 3 . 1 . . . . 11 1 . 13 . Parts Lost 87 | . 1 3 . . . 2 8 . 7 . 5 9 . 6 . . 2 6 2 . 3 19 14 Power 10 | . . . . . . . . . 1 . . 1 . 1 . . 1 1 . . . 2 3 Propulsion 20 | . . 1 . . . . 1 . 3 . 2 2 . 2 . . . 1 . . 2 4 2 Utility 28 | . 1 . . . . 1 2 . . . 1 1 . 2 . . 1 2 2 . 1 8 6 Weapon 29 | . . 2 . . . 1 5 . 3 . 2 5 . 1 . . . 2 . . . 5 3 Highest Loss Streak 15 | . 1 1 . . . 1 4 . 4 . 2 5 . 6 . . 2 4 1 . 1 15 6 To Critical Strikes . | . . . . . . . . . . . . . . . . . . . . . . . . Average Backups 6 | . 3 9 9 10 10 9 8 8 8 9 8 8 7 6 3 3 4 3 3 3 3 3 3 Power . | . 1 1 1 1 1 . . . . . . . 1 1 1 . . . . . . . . Propulsion . | . . . . . . . 1 . . . . . . . . 1 2 1 . . . 1 1 Utility 3 | . . 7 8 8 8 7 6 5 2 2 2 2 2 1 . . . . . . . . . Weapon 1 | . . . . 1 1 1 1 1 1 2 1 1 1 1 1 1 1 1 2 2 2 . . Tool/Special . | . . . . . . . . . . . . . . . . . . . . . . . . Unused Backups 28 | . . 4 1 1 . 1 1 2 2 . . 1 . 3 1 . . . 4 . . 3 4 Power 6 | . . 3 . . . . . . . . . . . 1 . . . . . . . 1 1 Propulsion 5 | . . 1 . . . . . . . . . 1 . . . . . . 1 . . 1 1 Utility 10 | . . . 1 1 . 1 1 2 . . . . . 1 1 . . . . . . 1 1 Weapon 5 | . . . . . . . . . 2 . . . . . . . . . 3 . . . . Tool/Special 2 | . . . . . . . . . . . . . . 1 . . . . . . . . 1 Average Slot Usage (%) 89 | . 99 99 100 91 88 89 87 82 91 84 85 96 97 78 31 73 89 82 87 88 85 85 86 Engine 2 | . 14 . . . . 2 7 7 6 . . 2 5 2 . 1 . . 1 . . . . Core 2 | . . 10 11 11 11 6 . . . . . 2 . . . . . . . . . . . Reactor 2 | . . . . . . . . . . . . 5 5 5 . 5 5 5 5 5 4 6 7 Treads 11 | . 28 21 22 22 22 18 14 3 1 . . . . . . . . . 5 21 15 7 11 Leg 2 | . . . . . . . . 3 5 . 7 18 17 11 . . . . . . 2 1 1 Wheel 1 | . . . . . . . . 3 . . . . . . . 15 21 20 15 . . . . Device 8 | . 13 2 . . . . . 4 . . 2 10 14 14 7 18 21 14 8 4 9 15 19 Storage 5 | . 14 11 11 11 11 9 7 10 7 7 7 6 5 3 . . . . . . . . . Processor 3 | . . . . . . . . . . . . . . . . . . 4 5 5 4 11 19 Hackware 15 | . . 8 11 11 11 17 27 23 38 38 34 22 17 17 17 15 15 15 24 21 20 5 . Protection 3 | . . . . . . 8 5 . . . . . . . . . . . 2 10 6 10 7 Energy Gun 5 | . 14 12 11 11 11 . 1 9 4 . . . 5 3 . . . . . . . 4 8 Energy Cannon 1 | . . . . . . 8 5 5 . . 2 3 5 3 . . . . . . . . . Ballistic Gun 7 | . 14 16 22 14 11 9 6 . 8 15 10 8 11 7 . 2 9 6 . . . 3 3 Ballistic Cannon 1 | . . . . . . . . . . . . 5 . . . . . . 1 3 . 5 8 Launcher 3 | . . 14 11 11 11 8 7 . . . . . . . . . . . . . . . . Slashing Weapon 1 | . . . . . . . . 6 6 7 7 . . . . . . . 5 1 3 1 . Piercing Weapon 1 | . . . . . . . . . . . . . . . . 3 5 4 4 6 9 1 . Special Melee Weapon 2 | . . . . . . . . . 6 7 7 5 5 5 5 5 5 3 4 5 4 . . Peak Build Rating 201 | 7 8 22 21 31 31 45 51 46 50 40 51 71 82 85 29 87 87 85 133 129 135 190 201 Average Rating 77 | 5 7 19 21 27 31 39 41 37 44 40 42 65 79 64 26 66 76 71 105 125 130 157 195 On Entrance 57 | . 7 7 21 21 31 31 45 20 46 40 40 51 71 82 24 28 87 77 72 129 120 133 190 Avg Prop Armor Cover (%) 4 | . . . . . . . . 9 11 . 3 5 . . . 5 3 2 3 . 2 1 7 Naked Turns . | . . . . . . . . . . . . . . . . . . . . . . . . Heaviest Build 108 | 15 15 30 29 33 33 58 58 44 42 19 35 53 60 68 4 58 58 54 108 108 84 102 98 Greatest Support 240 | 40 40 40 40 40 40 40 40 40 28 4 35 60 60 60 3 69 69 60 108 108 108 188 240 Greatest Overweight (x) 10 | . . 1 . . . 1 1 10 6 4 4 2 . 2 1 1 . 1 5 . 1 2 . Average Overweight (x) . | . . . . . . . . 3 2 4 1 . . . . . . . . . . . . Largest Inventory Capacity 10 | 8 8 10 10 10 10 10 10 10 10 10 10 10 10 10 5 5 5 5 5 5 5 5 5 Average Capacity 7 | 7 8 9 10 10 10 10 10 10 10 10 10 10 10 8 5 5 5 5 5 5 5 5 5 Most Carried 10 | 1 8 10 10 10 10 10 10 10 10 10 10 10 8 10 5 5 5 5 5 5 5 5 5 Average Carried 7 | . 3 9 9 10 10 9 9 9 9 10 9 9 8 7 4 4 5 4 4 4 4 4 4 Final Capacity 10 | 8 8 10 10 10 10 10 10 10 10 10 10 10 10 5 5 5 5 5 5 5 5 5 5 Final Carried 10 | 1 8 10 10 10 10 10 9 10 10 10 10 9 8 5 4 5 5 4 5 5 5 5 4 Class Distribution -------------------- 20% | Hacker-Mutant 18% | Hacker-Skirmisher 14% | Hacker-Gladiator 12% | Scavenger-Tank 10% | Gunner 6% | Bomber 6% | Mutant 6% | Scavenger-Gunner Dominant Class ---------------- Mutant | -10/Materials Bomber | -9/Materials Gunner | -9/Mines Gunner | -9/Exiles Skirmisher | -8/Mines Hacker-Skirmisher | -8/Materials Hacker-Mutant | -7/Factory Hacker-Mutant | -7/Lower Caves Hacker-Mutant | -7/Lower Caves Hacker-Mutant | -7/Data Miner Hacker-Mutant | -6/Proximity Caves Hacker-Skirmisher | -6/Factory Hacker-Skirmisher | -5/Factory Hacker-Skirmisher | -5/Waste Hacker-Mutant | -5/Factory Hacker-Gladiator | -4/Factory Hacker-Gladiator | -4/Upper Caves Hacker-Gladiator | -4/Upper Caves Hacker-Gladiator | -4/Warlord Hacker-Gunner | -3/Proximity Caves Hacker-Gladiator | -3/Research Scavenger-Tank | -2/Research Scavenger-Gunner | -1/Access Resources | -11 -10 -9 -9 -9 -8 -8 -7 -7 -7 -7 -6 -6 -5 -5 -5 -4 -4 -4 -4 -3 -3 -2 -1 ----------- Run | Yrd Mat Mat Min Exi Min Mat Fac Low Low Dat Pro Fac Fac Was Fac Fac Upp Upp War Pro Res Res Acc Matter Collected 8481 | 262 196 1020 . 10 . 548 286 133 170 . 427 565 62 70 . 350 10 99 699 86 385 1442 1661 Remotely 225 | . 196 . . . . . . . . . . . . . . . . . . . . . 29 Salvage Created 12963 | 74 627 1701 . . . 2514 784 132 113 . 350 861 . 802 . 384 36 354 405 43 832 724 2227 Parts 659 | 7 42 113 . . . 142 51 6 5 . 6 33 . 21 . 12 1 10 17 2 38 34 119 Haulers Intercepted 13 | . 2 4 . . . 3 . . . . . 2 . . . . . . . . 1 1 . Recyclers Shooed 10 | 1 1 . . . . 1 . . . . . 5 . . . . . . . . . . 2 Parts Field Recycled . | . . . . . . . . . . . . . . . . . . . . . . . . Retrieved Matter . | . . . . . . . . . . . . . . . . . . . . . . . . Parts Self-Destructed 23 | . . . . . . . . 3 6 . 5 . . . . . . 7 . 2 . . . Prevented . | . . . . . . . . . . . . . . . . . . . . . . . . Parts Restored . | . . . . . . . . . . . . . . . . . . . . . . . . Kills | -11 -10 -9 -9 -9 -8 -8 -7 -7 -7 -7 -6 -6 -5 -5 -5 -4 -4 -4 -4 -3 -3 -2 -1 ------- Run | Yrd Mat Mat Min Exi Min Mat Fac Low Low Dat Pro Fac Fac Was Fac Fac Upp Upp War Pro Res Res Acc Combat Hostiles Destroyed 207 | . 9 31 . . . 52 12 1 4 . 5 8 . 3 . . 2 6 11 4 8 12 39 Melee 23 | . . . . . . . . 1 . . . . . . . . 1 3 2 1 8 7 . Guns 96 | . 7 16 . . . 35 2 . 3 . 3 4 . 2 . . . . . . . 2 22 Cannons 39 | . . . . . . 7 1 . . . . 4 . 1 . . . . 3 3 . 3 17 AOE 46 | . 2 15 . . . 9 9 . 1 . 2 . . . . . 1 1 6 . . . . Classes Destroyed 26 | 2 4 6 . . . 4 2 1 . . 2 . . 1 . . . . 3 . . 1 . Worker 18 | . . 6 . . . 4 4 . . . . . . . . . . . . . . . 4 Builder 13 | . 2 3 . . . 3 2 . . . . . . . . . . . . . 2 . 1 Tunneler 4 | 1 . . . . . 2 . . . . . . . . . 1 . . . . . . . Hauler 13 | . 2 4 . . . 3 . . . . . 2 . . . . . . . . 1 1 . Recycler 14 | 1 . 4 . . . 1 2 . . . . 1 . . . 3 . . . . 1 . 1 Minesweeper 3 | . . . . . . . . . . . 2 . . . . . . 1 . . . . . Mechanic 2 | . . . . . . 1 . . . . . . . . . . . . 1 . . . . Operator 1 | . . 1 . . . . . . . . . . . . . . . . . . . . . Drone 3 | . . . . . . . . . . . 1 . . . . . . . . 2 . . . Watcher 17 | . 2 4 . . . 5 . . . . . 2 . . . . . . . . 1 2 1 Swarmer 42 | . . 4 . . . 10 . . 2 . . 2 . . . . 2 3 2 . . 5 12 Grunt 83 | . 9 18 . . . 29 7 . . . 3 2 . . . . . 4 4 . 2 1 4 Brawler 3 | . . 1 . . . 2 . . . . . . . . . . . . . . . . . Duelist 1 | . . 1 . . . . . . . . . . . . . . . . . . . . . Protector 1 | . . . . . . 1 . . . . . . . . . . . . . . . . . Sentry 17 | . . 7 . . . 7 . . . . . . . . . . . . . . . . 3 Demolisher 2 | . . . . . . . . . . . . . . . . . . . . . . 2 . Specialist 2 | . . . . . . 2 . . . . . . . . . . . . . . . . . Hunter 19 | . . . . . . . 2 . 1 . 1 4 . . . . . . 2 2 2 1 4 Programmer 28 | . . . . . . . 3 1 1 . . 2 . . . . . . . . 4 1 16 Heavy 1 | . . . . . . 1 . . . . . . . . . . . . . . . . . Compactor 3 | . . . . . . . . . . . . . . 3 . . . . . . . . . Striker 3 | . . . . . . . . . . . . . . . . . . . 2 . . 1 . Executioner 2 | . . . . . . . . . . . . . . . . . . . 1 . . 1 . Decomposer 1 | . . . . . . . . 1 . . . . . . . . . . . . . . . Samaritan 2 | . . . . . . . . 2 . . . . . . . . . . . . . . . Tinkerer 1 | . . . . . . . . . . . . . . . . . . . 1 . . . . Wasp 1 | . . . . . . . . . . . . . . . . . . . . . . 1 . Best Kill Streak 12 | 2 3 11 . . . 12 6 1 2 . 2 3 . 2 . 2 2 4 5 2 3 4 7 Combat Bots Only 10 | . 2 5 . . . 10 6 1 2 . 1 3 . 2 . . 2 5 4 2 2 4 7 Max Kills in Single Turn 5 | 1 2 3 . . . 5 3 1 1 . 1 1 . 1 . 1 1 1 2 1 1 1 3 Gunslinging . | . . . . . . . . . . . . . . . . . . . . . . . . Exploded 2 | . 1 2 . . . 2 2 . 1 . 1 . . . . . 1 1 2 . . . . Melee 1 | . . . . . . . . 1 . . . . . . . . 1 1 1 1 1 1 . Uniques/NPCs Destroyed . | . . . . . . . . . . . . . . . . . . . . . . . . Combat | -11 -10 -9 -9 -9 -8 -8 -7 -7 -7 -7 -6 -6 -5 -5 -5 -4 -4 -4 -4 -3 -3 -2 -1 -------- Run | Yrd Mat Mat Min Exi Min Mat Fac Low Low Dat Pro Fac Fac Was Fac Fac Upp Upp War Pro Res Res Acc Hostile Shots Fired 1367 | . 49 85 . . . 65 108 20 37 . 30 130 . 7 . 6 16 57 73 64 109 201 310 Missed 423 | . 17 29 . . . 23 35 5 7 . 7 42 . 1 . . 1 13 23 27 33 63 97 Hits 944 | . 32 56 . . . 42 73 15 30 . 23 88 . 6 . 6 15 44 50 37 76 138 213 Melee 38 | . . 1 . . . 1 . 4 . . . . . 6 . . . . 13 . . 13 . Projectile 906 | . 32 55 . . . 41 73 11 30 . 23 88 . . . 6 15 44 37 37 76 125 213 AOE 35 | . . . . . . . . . . . . . . . . . . . . . . 35 . Critical Strikes 42 | . 1 3 . . . 2 3 . 1 . 2 4 . 4 . . 1 2 4 . 3 4 8 Actively Blocked 12 | . . . . . . . . . . . . . . . . . . . . . . 4 8 Part Disruptions 3 | . . . . . . . . . . . . . . . . . . . . . 1 . 2 Damage Taken 20961 | . 484 788 . . . 672 1239 211 452 . 478 1351 . 155 . 106 306 678 1539 658 1504 5620 4720 Core 2903 | . 24 116 . . . 56 236 59 58 . 64 142 . 83 . 76 40 180 211 41 47 1216 254 Absorbed by Shields 377 | . . . . . . . . . . . . . . . . . . . 167 . . . 210 Reduced by Siege Mode 172 | . . . . . . . . . . . . . . . . . . . . . . . 172 Ignored by Resistances 379 | . . . . . . 59 68 . . . . . . 55 . . 55 142 . . . . . Regen/Repaired (Parts) 836 | . . 46 . . . 38 . . . . . 106 . . . . . . 46 . 195 405 . Core Remaining (%) 73 | 100 90 . . . 71 89 . . . . 40 83 . . 91 . . . . 52 96 16 84 Volleys Fired 437 | 3 41 70 . . . 35 41 2 10 . 22 53 . 15 . . . 1 18 16 . 27 83 Largest 5 | 2 2 4 . . . 2 3 2 2 . 2 3 . 4 . . . 1 2 2 . 5 5 Hottest 284 | 60 60 141 . . . 102 130 129 149 . 113 136 . 161 . . . 28 76 76 . 284 284 Shots Fired 1220 | 6 83 172 . . . 181 86 6 14 . 48 100 . 56 . . . 1 27 18 . 107 315 Gun 800 | 6 83 139 . . . 128 56 5 14 . 44 57 . 41 . . . 1 . . . 54 172 Cannon 343 | . . . . . . 35 14 1 . . 4 43 . 15 . . . . 19 16 . 53 143 Launcher 67 | . . 33 . . . 18 16 . . . . . . . . . . . . . . . . Special 10 | . . . . . . . . . . . . . . . . . . . 8 2 . . . Kinetic 800 | 3 41 106 . . . 128 41 . 7 . 44 82 . 28 . . . 1 19 16 . 77 207 Thermal 207 | . . 15 . . . . . 6 7 . 4 18 . 28 . . . . . . . 21 108 Explosive 68 | . . 33 . . . 18 7 . . . . . . . . . . . 8 2 . . . Electromagnetic 145 | 3 42 18 . . . 35 38 . . . . . . . . . . . . . . 9 . Robot Hit Streak 21 | 3 13 13 . . . 21 18 . 5 . 8 8 . 13 . . . 5 3 4 . 11 17 Robot Miss Streak 13 | 1 3 4 . . . 4 3 4 13 . 9 3 . 2 . . . . 3 4 . 8 4 Penetration Max 1 | . . . . . . . 1 . . . . 1 . 1 . . . . . . . 1 1 Secondary Targets 5 | . 2 2 . . . . . . . . . 1 . . . . . . . . . . . Max Gunslinging Chain 1 | . 1 1 . . . . . . . . . 1 . . . . . . . . . . . Autonomous 129 | . . . . . . 129 . . . . . . . . . . . . . . . . . Shots Hit Robots 906 | 4 55 95 . . . 149 65 9 15 . 49 74 . 40 . 8 3 18 20 9 37 84 172 Core Hits 497 | 2 23 82 . . . 94 32 4 9 . 35 39 . 11 . 3 2 7 20 5 15 26 88 Critical Kills 5 | . . 1 . . . 1 . . . . . . . 2 . . . . . . . . 1 Critical Parts Destroyed 8 | . 1 . . . . . 1 . . . . 1 . 1 . . . 1 . . . . 3 Critical Strikes 42 | . 1 1 . . . 1 2 1 . . . 2 . 6 . . . 3 2 2 3 10 8 Destroy 15 | . 1 1 . . . 1 1 . . . . 1 . 6 . . . . . . . . 4 Blast 10 | . . . . . . . . . . . . 1 . . . . . . . 1 . 4 4 Corrupt 1 | . . . . . . . 1 . . . . . . . . . . . . . . . . Smash 1 | . . . . . . . . . . . . . . . . . . 1 . . . . . Sever 6 | . . . . . . . . 1 . . . . . . . . . . 1 . 3 1 . Impale 2 | . . . . . . . . . . . . . . . . . . 2 . . . . . Sunder 7 | . . . . . . . . . . . . . . . . . . . 1 1 . 5 . Melee Attacks 221 | . . . . . . . . 11 6 . 12 13 . 1 . 17 6 34 16 1 63 41 . Impact 11 | . . . . . . . . . . . . . . . . 3 1 7 . . . . . Slashing 69 | . . . . . . . . 11 3 . 1 . . . . . . . 2 . 39 13 . Piercing 82 | . . . . . . . . . 3 . 11 13 . 1 . 14 5 27 . . 5 3 . Entropic 59 | . . . . . . . . . . . . . . . . . . . 14 1 19 25 . Sneak Attacks 30 | . . . . . . . . 4 . . 2 4 . . . 4 . 6 . . 8 2 . Combat Hostiles 4 | . . . . . . . . . . . 2 1 . . . . . . . . . 1 . Follow-up Attacks 20 | . . . . . . . . . . . . . . . . . 1 3 1 . 13 2 . Damage Inflicted 36193 | 60 882 2620 14 . . 6555 2443 415 323 . 696 1621 . 832 . 647 146 863 3564 722 2701 4210 6879 Guns 13385 | 60 717 1350 . . . 3611 797 . 243 . 621 790 . 450 . . . 20 . . . 863 3863 Cannons 7423 | . . . . . . 751 124 . . . 29 751 . 381 . . . . 572 631 . 1487 2697 Explosions 7449 | . 165 1270 . . . 2188 1491 . . . . . . . . . . . 2083 . . . 252 Melee 7443 | . . . . . . . . 410 80 . 46 28 . 1 . 647 146 843 590 91 2701 1860 . Ramming 174 | . . . 14 . . 5 31 5 . . . 52 . . . . . . . . . . 67 Kinetic 14604 | 15 305 947 . . . 3611 649 . 78 . 621 1259 . 169 . . . 20 572 631 . 1861 3866 Thermal 4841 | . 165 189 . . . . 318 . 165 . 29 282 . 662 . . . . . . . 304 2727 Explosive 6303 | . . 1109 . . . 2188 704 . . . . . . . . . . . 2083 . . . 219 Electromagnetic 2509 | 45 412 375 . . . 751 741 . . . . . . . . . . . . . . 185 . Impact 322 | . . . . . . . . . . . . . . . . . 93 229 . . . . . Slashing 3125 | . . . . . . . . 410 76 . 28 . . . . . . . 319 . 1752 540 . Piercing 1377 | . . . . . . . . . 4 . 18 28 . 1 . 647 53 614 . . 9 3 . Entropic 2938 | . . . . . . . . . . . . . . . . . . . 590 91 940 1317 . Highest Corruption 17 | . 4 . . . . 1 9 12 16 16 17 1 . . . . . . 1 1 14 8 14 Average Corruption 8 | . 3 . . . . 1 1 11 15 16 16 1 . . . . . . 1 1 7 7 9 Corruption Purged . | . . . . . . . . . . . . . . . . . . . . . . . . Corruption Blocked . | . . . . . . . . . . . . . . . . . . . . . . . . Effects 291 | . 6 . . . . 1 3 30 43 10 48 8 . . . . . . 3 6 11 58 64 Message Errors 81 | . 2 . . . . . . 7 10 4 18 3 . . . . . . . 2 3 18 14 Matter Fused 67 | . 2 . . . . . . 8 9 2 13 3 . . . . . . 1 1 2 12 14 Heat Flow Errors 37 | . 1 . . . . 1 1 4 7 . 4 . . . . . . . 1 1 2 6 9 Energy Discharges 22 | . . . . . . . . 4 5 1 3 1 . . . . . . . . . 6 2 Parts Rejected 1 | . . . . . . . . . . . . . . . . . . . . . . . 1 Parts Fused 4 | . . . . . . . . . . . . . . . . . . . . . 2 1 1 Data Loss (minor) 38 | . . . . . . . 2 4 10 1 4 . . . . . . . . 2 1 5 9 Data Loss (major) 9 | . . . . . . . . . 1 2 . 1 . . . . . . . . . 2 3 Misfires 15 | . 1 . . . . . . 3 . . 5 . . . . . . . 1 . . 4 1 Alerts 3 | . . . . . . . . . . . 1 . . . . . . . . . 1 1 . Misdirections 2 | . . . . . . . . . . . . . . . . . . . . . . . 2 Weapon Failures 12 | . . . . . . . . . 1 . . . . . . . . . . . . 3 8 Overload Shots 1 | . . . . . . . . . . . . . . 1 . . . . . . . . . Overflow Damage 1811 | . 8 . . . . 59 119 . 8 . . 24 . . . 160 . 264 278 61 203 431 196 Projectiles 472 | . . . . . . 10 . . . . . 24 . . . . . . 102 61 . 120 155 Explosions 230 | . 8 . . . . 49 119 . . . . . . . . . . . 31 . . . 23 Melee 1109 | . . . . . . . . . 8 . . . . . . 160 . 264 145 . 203 311 18 Knockbacks 36 | . . . . . . . . . . . . 8 . . . . 1 1 1 5 . 13 7 Impact 3 | . . . . . . . . . . . . 1 . . . . 1 1 . . . . . Kinetic 33 | . . . . . . . . . . . . 7 . . . . . . 1 5 . 13 7 Secondary . | . . . . . . . . . . . . . . . . . . . . . . . . Self-Inflicted Damage 111 | . . 28 . . . . 3 . . . . . . . . . . . . . . . 80 Shots 4 | . . 2 . . . . 1 . . . . . . . . . . . . . . . 1 Rammed 13 | . . . 2 . . 1 3 2 . . . . . . . . . . . . . . 5 Targets Rammed 17 | . . . 2 . . 1 3 2 . . . 4 . . . . . . . . . . 5 Kicked 4 | . . . . . . . . . . . . 4 . . . . . . . . . . . Crushed . | . . . . . . . . . . . . . . . . . . . . . . . . Highest Temperature 340 | . 174 201 . . . 234 308 238 308 . 223 327 . 6 . 14 5 20 135 339 99 198 340 Average Temperature 89 | . 53 49 . . . 74 128 75 120 . 87 183 . 4 . 14 5 11 57 157 49 81 94 Received Heat Transfer 1821 | . 258 306 . . . 270 144 . . . 63 72 . . . 42 . 118 107 . 51 12 378 Effects 7 | . . . . . . . 1 . . . . 1 . . . . . . . 3 . . 2 Energy Bleed 2 | . . . . . . . 1 . . . . 1 . . . . . . . . . . . Interference 5 | . . . . . . . . . . . . . . . . . . . . 3 . . 2 Siege Activations 1 | . . . . . . . . . . . . . . . . . . . . . . . 1 Total Turns 22 | . . . . . . . . . . . . . . . . . . . . . . . 22 Longest Duration 22 | . . . . . . . . . . . . . . . . . . . . . . . 22 Martial Activations . | . . . . . . . . . . . . . . . . . . . . . . . . Shielding Activations . | . . . . . . . . . . . . . . . . . . . . . . . . Robots Disrupted 1 | . . . . . . . 1 . . . . . . . . . . . . . . . . Combat Hostiles 1 | . . . . . . . 1 . . . . . . . . . . . . . . . . Robots Corrupted 5 | . 1 . . . . 1 . . . . . . . . . . . 3 . . . . . Combat Hostiles 3 | . . . . . . 1 . . . . . . . . . . . 2 . . . . . Parts Fried 11 | . 3 2 . . . 1 1 . . . . . . . . . . 1 . . . . 3 Impact Corruptions 6 | . . . . . . . . . . . . . . . . . . 5 . . . . 1 Robots Melted . | . . . . . . . . . . . . . . . . . . . . . . . . Combat Hostiles . | . . . . . . . . . . . . . . . . . . . . . . . . Parts Melted 8 | . . . . . . . . . 2 . 1 . . . . . 1 1 . . . . 3 Heat Transferred 5958 | . 200 457 . . . . 200 . 300 . 37 409 . 901 . . . . . . . 370 3084 Parts Sabotaged . | . . . . . . . . . . . . . . . . . . . . . . . . Parts Stolen 2 | . . . . . . . . 2 . . . . . . . . . . . . . . . Parts Stripped . | . . . . . . . . . . . . . . . . . . . . . . . . Power Chain Reactions 10 | . 3 4 . . . . 3 . . . . . . . . . . . . . . . . Alert | -11 -10 -9 -9 -9 -8 -8 -7 -7 -7 -7 -6 -6 -5 -5 -5 -4 -4 -4 -4 -3 -3 -2 -1 ------- Run | Yrd Mat Mat Min Exi Min Mat Fac Low Low Dat Pro Fac Fac Was Fac Fac Upp Upp War Pro Res Res Acc Maximum Alert Level 3 | . . 2 1 . . 3 2 . . . . 1 . . . . . . . . . . 3 Low Security (%) 72 | 100 100 55 86 . 100 52 40 . . . . 84 100 100 100 100 . . . . 100 100 42 Level 1 11 | . . 12 13 . . 9 58 . . . . 15 . . . . . . . . . . 8 Level 2 13 | . . 32 . . . 32 1 . . . . . . . . . . . . . . . 32 Level 3 3 | . . . . . . 5 . . . . . . . . . . . . . . . . 15 Level 4 . | . . . . . . . . . . . . . . . . . . . . . . . . Level 5 . | . . . . . . . . . . . . . . . . . . . . . . . . High Security . | . . . . . . . . . . . . . . . . . . . . . . . . Max Security . | . . . . . . . . . . . . . . . . . . . . . . . . Sterilizations 1 | . . . . . . 1 . . . . . . . . . . . . . . . . . Peak Influence 997 | 5 119 635 243 . . 750 406 . . . . 300 . 2 2 177 . . . . 75 90 997 Initial 336 | . . 4 243 . . . 336 . . . . 300 . . . . . . . . . 21 38 Average 161 | . 36 240 85 . . 288 236 . . . . 67 . . . 44 . . . . 20 18 354 Influence Increases 8044 | 10 380 1257 . . . 1648 580 30 133 . 171 686 . 2 2 265 40 129 416 60 302 452 1481 Destroy 0b10 Robot/C 4320 | . 180 620 . . . 1020 240 20 100 . 120 220 . . . 160 40 120 260 40 160 240 780 Destroy 0b10 Robot/NC 460 | 10 30 110 . . . 100 40 . . . 30 25 . . . 20 . 5 5 10 25 15 35 Destroy Leader 920 | . 48 166 . . . 216 80 10 30 . 20 48 . . . 20 . . . 10 44 66 162 Allied During Kill 52 | . . . . . . . . . 3 . 1 5 . . . 23 . 4 16 . . . . Successful Hack 216 | . 54 26 . . . 32 31 . . . . 16 . . 2 17 . . . . 12 26 . Disable Machine 495 | . 30 180 . . . 90 120 . . . . 15 . . . 15 . . . . . . 45 Destroy Structure 816 | . 8 155 . . . 160 54 . . . . 12 . 2 . 10 . . . . 16 45 354 Advance Influence 300 | . . . . . . . . . . . . 300 . . . . . . . . . . . Partial Spotted 60 | . 15 . . . . . . . . . . 15 . . . . . . . . . . 30 Lose Combat Pursuer 405 | . 15 . . . . 30 15 . . . . 30 . . . . . . 135 . 45 60 75 Influence Decreases 7069 | 10 368 644 625 . . 908 1006 344 82 51 171 686 . 2 2 207 98 87 250 268 263 427 570 Entered New Map 1278 | . . 8 382 . . . 404 117 . 51 . . . . . . 22 . 42 208 . 18 26 Time Decay 4332 | 10 288 456 243 . . 438 502 227 72 . 129 499 . . 2 167 56 67 130 60 242 340 404 Search Patrol Dispatched 100 | . . . . . . . . . . . . 100 . . . . . . . . . . . Lost Part 517 | . 10 30 . . . 20 80 . 10 . 10 67 . . . . 20 20 20 . 21 69 140 Lost Ally 172 | . . . . . . . 20 . . . 32 20 . 2 . 40 . . 58 . . . . Purge Threat 670 | . 70 150 . . . 450 . . . . . . . . . . . . . . . . . Squads Dispatched 49 | . 4 6 . . . 10 6 . . . . 3 . . . 2 . . . . 4 1 13 Investigation 9 | . 3 3 . . . 1 . . . . . . . . . 1 . . . . 1 . . Extermination 13 | . . . . . . . 2 . . . . 2 . . . 1 . . . . 3 . 5 Reinforcement 17 | . 1 2 . . . 5 4 . . . . 1 . . . . . . . . . 1 3 Assault 5 | . . 1 . . . 2 . . . . . . . . . . . . . . . . 2 Garrison 5 | . . . . . . 2 . . . . . . . . . . . . . . . . 3 Intercept . | . . . . . . . . . . . . . . . . . . . . . . . . Searches Triggered 1 | . . . . . . . . . . . . 1 . . . . . . . . . . . Data Miner Redirects 1 | . . . . . . . . . . . . . . . . . . . . . . . 1 Construction Impeded 6 | . . . . . . 1 3 . . . . . . . . . . . . . . . 2 Haulers Reinforced 2 | . . . . . . . 1 . . . . 1 . . . . . . . . . . . Active Scanning Responses . | . . . . . . . . . . . . . . . . . . . . . . . . Cargo Convoy Interrupts . | . . . . . . . . . . . . . . . . . . . . . . . . Stealth | -11 -10 -9 -9 -9 -8 -8 -7 -7 -7 -7 -6 -6 -5 -5 -5 -4 -4 -4 -4 -3 -3 -2 -1 --------- Run | Yrd Mat Mat Min Exi Min Mat Fac Low Low Dat Pro Fac Fac Was Fac Fac Upp Upp War Pro Res Res Acc Distress Signals 19 | . . 2 . . . 3 2 . . . . . . . . . . . 3 . . 8 1 Communications Jammed . | . . . . . . . . . . . . . . . . . . . . . . . . Distress Signals . | . . . . . . . . . . . . . . . . . . . . . . . . Times Spotted 372 | . 16 39 . . . 57 19 3 5 . 13 19 . 6 . 9 9 8 53 3 12 48 53 Peak Tracking Total 16 | . 4 5 . . . 6 5 2 3 . 3 4 . 3 . 4 5 4 16 2 3 10 9 Tactical Retreats 16 | . 1 . . . . 2 1 . . . . 2 . . . . . . 3 . 2 4 1 Traps | -11 -10 -9 -9 -9 -8 -8 -7 -7 -7 -7 -6 -6 -5 -5 -5 -4 -4 -4 -4 -3 -3 -2 -1 ------- Run | Yrd Mat Mat Min Exi Min Mat Fac Low Low Dat Pro Fac Fac Was Fac Fac Upp Upp War Pro Res Res Acc Traps Triggered 10 | . 7 . . . . . . . . . 1 . 1 . . 1 . . . . . . . Indirectly . | . . . . . . . . . . . . . . . . . . . . . . . . Trap Hack Attempts . | . . . . . . . . . . . . . . . . . . . . . . . . Triggered . | . . . . . . . . . . . . . . . . . . . . . . . . Disarmed 6 | . . . . . . . . . . . . 6 . . . . . . . . . . . Reprogrammed 3 | . . . . . . 3 . . . . . . . . . . . . . . . . . Reused . | . . . . . . . . . . . . . . . . . . . . . . . . Traps Extracted . | . . . . . . . . . . . . . . . . . . . . . . . . Installed 24 | . . . . . . . . . . . 20 . . . . . . 4 . . . . . Triggered . | . . . . . . . . . . . . . . . . . . . . . . . . Machines | -11 -10 -9 -9 -9 -8 -8 -7 -7 -7 -7 -6 -6 -5 -5 -5 -4 -4 -4 -4 -3 -3 -2 -1 ---------- Run | Yrd Mat Mat Min Exi Min Mat Fac Low Low Dat Pro Fac Fac Was Fac Fac Upp Upp War Pro Res Res Acc Machines Disabled 34 | . 2 12 . . . 6 8 . . . . 1 . . . 1 . . . 1 . . 3 Max in Single Turn 4 | . 1 4 . . . 2 4 . . . . 1 . . . . . . . 1 . . 1 Garrison Access 4 | . . . . . . 1 . . . . . 1 . . . . . . . . . 1 1 Energy Cycler 1 | . . . . . . . . . . . . . . . . . . . . . . . 1 Machines Repaired . | . . . . . . . . . . . . . . . . . . . . . . . . Machines Dismantled . | . . . . . . . . . . . . . . . . . . . . . . . . Machines Sabotaged . | . . . . . . . . . . . . . . . . . . . . . . . . Overloaded Fab Kills . | . . . . . . . . . . . . . . . . . . . . . . . . Hacking | -11 -10 -9 -9 -9 -8 -8 -7 -7 -7 -7 -6 -6 -5 -5 -5 -4 -4 -4 -4 -3 -3 -2 -1 --------- Run | Yrd Mat Mat Min Exi Min Mat Fac Low Low Dat Pro Fac Fac Was Fac Fac Upp Upp War Pro Res Res Acc Machines Accessed 65 | . 5 10 . 1 . 12 6 1 . 3 . 6 . . 1 4 . 1 4 1 3 2 5 Terminals 34 | . 5 9 . . . 8 3 . . . . 2 . . 1 2 . 1 . . . 2 1 Fabricators 5 | . . . . . . . 2 . . . . 1 . . . 1 . . . . 1 . . Repair Stations 6 | . . 1 . . . 1 . . . . . 1 . . . . . . . . 2 . 1 Recycling Units . | . . . . . . . . . . . . . . . . . . . . . . . . Scanalyzers 6 | . . . . . . 2 1 . . . . 1 . . . 1 . . . . . . 1 Garrison Access 4 | . . . . . . 1 . . . . . 1 . . . . . . . . . . 2 Total Hacks 243 | . 15 29 . 1 . 64 29 1 . 19 . 18 . . 3 17 . 8 7 1 9 14 8 Successful 140 | . 7 12 . 1 . 32 12 1 . 19 . 13 . . 2 8 . 8 7 1 7 9 1 Failed 100 | . 8 16 . . . 31 17 . . . . 4 . . 1 9 . . . . 2 5 7 Catastrophic 24 | . . 8 . . . 6 8 . . . . 1 . . . . . . . . . 1 . Database Lockouts 3 | . . 1 . . . 1 . . . . . 1 . . . . . . . . . . . Manual 62 | . 5 14 . 1 . 22 10 . . . . 1 . . 1 . . . 1 . . 5 2 Terminals 154 | . 15 27 . . . 55 14 . . . . 8 . . 3 9 . 8 . . . 14 1 Fabricators 19 | . . . . . . . 10 . . . . 2 . . . 5 . . . . 2 . . Repair Stations 16 | . . 2 . . . 2 . . . . . 4 . . . . . . . . 7 . 1 Recycling Units . | . . . . . . . . . . . . . . . . . . . . . . . . Scanalyzers 20 | . . . . . . 6 5 . . . . 3 . . . 3 . . . . . . 3 Garrison Access 5 | . . . . . . 1 . . . . . 1 . . . . . . . . . . 3 Terminal Hacks 95 | . 5 9 . 1 . 24 2 1 . 19 . 5 . . 1 5 . 8 7 1 . 7 . Record 18 | . . . . . . . . . . 2 . . . . . . . 8 5 1 . 2 . Part Schematic 9 | . . . . . . . . . . 9 . . . . . . . . . . . . . Robot Schematic 5 | . . . . . . . . . . 5 . . . . . . . . . . . . . Robot Analysis 8 | . 2 2 . . . 3 . . . . . . . . . 1 . . . . . . . Prototype ID Bank 6 | . . . . . . 2 . . . 3 . 1 . . . . . . . . . . . Open Door 3 | . . . . . . . . 1 . . . . . . . . . . 2 . . . . Level Access Points 1 | . . . . . . . 1 . . . . . . . . . . . . . . . . Branch Access Points 3 | . . 1 . . . 1 . . . . . . . . . 1 . . . . . . . Emergency Access Points 2 | . . . . . . . . . . . . 1 . . . . . . . . . 1 . Terminal Index 4 | . 1 1 . . . 1 . . . . . . . . . . . . . . . 1 . Repair Station Index 1 | . . . . . . . . . . . . . . . . . . . . . . 1 . Scanalyzer Index 1 | . . . . . . 1 . . . . . . . . . . . . . . . . . Alert Level 6 | . . 2 . . . 3 . . . . . . . . . 1 . . . . . . . Unreport Threat 5 | . 1 1 . . . 3 . . . . . . . . . . . . . . . . . Locate Traps 5 | . . . . . . 2 1 . . . . 1 . . 1 . . . . . . . . Disarm Traps 1 | . . . . . . . . . . . . 1 . . . . . . . . . . . Reprogram Traps 1 | . . . . . . 1 . . . . . . . . . . . . . . . . . Dispatch Records 1 | . . . . . . . . . . . . 1 . . . . . . . . . . . Maintenance Status 1 | . . . . . . 1 . . . . . . . . . . . . . . . . . Transport Status 1 | . . . . . . 1 . . . . . . . . . . . . . . . . . Reinforcement Status 1 | . . 1 . . . . . . . . . . . . . . . . . . . . . Recall Investigation 1 | . . . . . . . . . . . . . . . . 1 . . . . . . . Hauler Manifests 1 | . . . . . . 1 . . . . . . . . . . . . . . . . . Registered Components 1 | . . . . . . . . . . . . . . . . . . . . . . 1 . Zone Layout 8 | . 1 1 . . . 4 . . . . . . . . . 1 . . . . . 1 . Proto ID Catalog 1 | . . . . 1 . . . . . . . . . . . . . . . . . . . Fabricator Hacks 9 | . . . . . . . 3 . . . . 2 . . . 2 . . . . 2 . . Network Status 1 | . . . . . . . 1 . . . . . . . . . . . . . . . . Load Schematic 3 | . . . . . . . . . . . . 1 . . . 1 . . . . 1 . . Build 5 | . . . . . . . 2 . . . . 1 . . . 1 . . . . 1 . . Repair Station Hacks 12 | . . 2 . . . 2 . . . . . 3 . . . . . . . . 5 . . Scan Component 7 | . . 1 . . . 1 . . . . . 2 . . . . . . . . 3 . . Repair 5 | . . 1 . . . 1 . . . . . 1 . . . . . . . . 2 . . Recycling Unit Hacks . | . . . . . . . . . . . . . . . . . . . . . . . . Scanalyzer 7 | . . . . . . 3 2 . . . . 1 . . . 1 . . . . . . . Insert Component 1 | . . . . . . 1 . . . . . . . . . . . . . . . . . Retrieve Study 6 | . . . . . . 2 2 . . . . 1 . . . 1 . . . . . . . Garrison Access Hacks 3 | . . . . . . 1 . . . . . 1 . . . . . . . . . . 1 Seal Access 3 | . . . . . . 1 . . . . . 1 . . . . . . . . . . 1 Unauthorized Hacks 14 | . 2 1 . . . 2 5 . . . . 1 . . 1 . . . . . . 2 . Terminals 10 | . 2 1 . . . 2 1 . . . . 1 . . 1 . . . . . . 2 . Botnet 7 | . 1 1 . . . 1 1 . . . . 1 . . 1 . . . . . . 1 . Operators 3 | . 1 . . . . 1 . . . . . . . . . . . . . . . 1 . Fabricators 4 | . . . . . . . 4 . . . . . . . . . . . . . . . . Liberate 2 | . . . . . . . 2 . . . . . . . . . . . . . . . . Fabnet 2 | . . . . . . . 2 . . . . . . . . . . . . . . . . Repair Stations . | . . . . . . . . . . . . . . . . . . . . . . . . Recycling Units . | . . . . . . . . . . . . . . . . . . . . . . . . Scanalyzers . | . . . . . . . . . . . . . . . . . . . . . . . . Garrison Access . | . . . . . . . . . . . . . . . . . . . . . . . . Data Cores Recovered 1 | . . 1 . . . . . . . . . . . . . . . . . . . . . Used . | . . . . . . . . . . . . . . . . . . . . . . . . Hacking Detections 48 | . 5 9 . . . 11 4 . . . . 4 . . 1 4 . 1 . . 3 2 4 Full Trace Events 7 | . 1 3 . . . 1 . . . . . . . . . 1 . . . . 1 . . Feedback Events . | . . . . . . . . . . . . . . . . . . . . . . . . Feedback Blocked . | . . . . . . . . . . . . . . . . . . . . . . . . Robot Schematics Acquired 5 | . . . . . . . . . . 5 . . . . . . . . . . . . . Robots Built 6 | . . . . . . . 2 . . . . 2 . . . 2 . . . . . . . Authchips 1 | . . . . . . . . . . . . 1 . . . . . . . . . . . Time 390 | . . . . . . . 162 . . . . 152 . . . 76 . . . . . . . Total Robot Build Rating 22 | . . . . . . . 2 . . . . 10 . . . 10 . . . . . . . Part Schematics Acquired 9 | . . . . . . . . . . 9 . . . . . . . . . . . . . Parts Built 1 | . . . . . . . . . . . . . . . . . . . . . 1 . . Authchips . | . . . . . . . . . . . . . . . . . . . . . . . . Time 84 | . . . . . . . . . . . . . . . . . . . . . 84 . . Total Part Build Rating 6 | . . . . . . . . . . . . . . . . . . . . . 6 . . Part Studies Acquired 6 | . . . . . . 2 2 . . . . 1 . . . 1 . . . . . . . Parts Repaired 5 | . . 1 . . . 1 . . . . . 1 . . . . . . . . 2 . . Time 116 | . . 26 . . . 26 . . . . . 19 . . . . . . . . 45 . . Parts Recycled . | . . . . . . . . . . . . . . . . . . . . . . . . Recycled Matter . | . . . . . . . . . . . . . . . . . . . . . . . . Retrieved Matter . | . . . . . . . . . . . . . . . . . . . . . . . . Retrieved Components . | . . . . . . . . . . . . . . . . . . . . . . . . Parts Scanalyzed 1 | . . . . . . 1 . . . . . . . . . . . . . . . . . Part Schematics Acquired . | . . . . . . . . . . . . . . . . . . . . . . . . Parts Damaged . | . . . . . . . . . . . . . . . . . . . . . . . . Bothacking | -11 -10 -9 -9 -9 -8 -8 -7 -7 -7 -7 -6 -6 -5 -5 -5 -4 -4 -4 -4 -3 -3 -2 -1 ------------ Run | Yrd Mat Mat Min Exi Min Mat Fac Low Low Dat Pro Fac Fac Was Fac Fac Upp Upp War Pro Res Res Acc Used RIF Installer . | . . . . . . . . . . . . . . . . . . . . . . . . Robots Hacked 3 | . . . . . . . . . . . 1 2 . . . . . . . . . . . Non-combat . | . . . . . . . . . . . . . . . . . . . . . . . . Combat 3 | . . . . . . . . . . . 1 2 . . . . . . . . . . . Robot Hacks Applied . | . . . . . . . . . . . . . . . . . . . . . . . . Relay Couplers Released 1 | . . . . . . . . . . . . . . . . . . . . . . 1 . Machine Destruction 1 | . . . . . . . . . . . . . . . . . . . . . . 1 . Fabnet Peak Effective % 6 | . . . . . . . . . . . 6 6 2 2 2 . . . . . . . . Autooverrided 3 | . . . . . . . . . . . 1 2 . . . . . . . . . . . Robots Rewired 5 | . . . . . . . . . . . . . . . . . . . 5 . . . . Allies Hacked . | . . . . . . . . . . . . . . . . . . . . . . . . Hacks Repelled . | . . . . . . . . . . . . . . . . . . . . . . . . Allies | -11 -10 -9 -9 -9 -8 -8 -7 -7 -7 -7 -6 -6 -5 -5 -5 -4 -4 -4 -4 -3 -3 -2 -1 -------- Run | Yrd Mat Mat Min Exi Min Mat Fac Low Low Dat Pro Fac Fac Was Fac Fac Upp Upp War Pro Res Res Acc Total Allies 23 | . . . . . . . 2 . 1 . 2 7 . . . 4 . 2 5 . . . . Largest Group 5 | . . . . . . . 2 . 1 . 1 2 2 2 . 2 . 1 5 . . . . Highest-Rated Group 320 | . . . . . . . 16 . 12 . 30 82 82 82 . 94 . 47 320 . . . . Highest-Rated Ally 68 | . . . . . . . 9 . 12 . 30 41 41 41 . 47 . 47 68 . . . . Total Orders 2 | . . . . . . . 1 . . . . . . . . . . . 1 . . . . STAY 1 | . . . . . . . . . . . . . . . . . . . 1 . . . . COLLECT 1 | . . . . . . . 1 . . . . . . . . . . . . . . . . Ally Attacks 96 | . . . . . . . . . 5 . 10 22 . 18 . 25 . 1 15 . . . . Total Damage 2880 | . . . . . . . . . 60 . 220 328 . 615 . 702 . 38 917 . . . . Kills 16 | . . . . . . . . . 1 . 2 3 . . . 8 . . 2 . . . . Allies Corrupted 3 | . . . . . . . . . . . . . . . . . . 1 2 . . . . Allies Melted 3 | . . . . . . . . . . . . . . . . . . . . . . 3 . Intel | -11 -10 -9 -9 -9 -8 -8 -7 -7 -7 -7 -6 -6 -5 -5 -5 -4 -4 -4 -4 -3 -3 -2 -1 ------- Run | Yrd Mat Mat Min Exi Min Mat Fac Low Low Dat Pro Fac Fac Was Fac Fac Upp Upp War Pro Res Res Acc Active Infowar (turns) 4843 | . . . . . . . . . . . . . . . . . . . . 150 385 1758 2550 Optics 4308 | . . . . . . . . . . . . . . . . . . . . . . 1758 2550 IFF 535 | . . . . . . . . . . . . . . . . . . . . 150 385 . . Machine Analysis 572 | . . . . . . . . . . . . . . . . . . . . . . . 572 Robot Analysis Total 8 | . 2 2 . . . 3 . . . . . . . . . 1 . . . . . . . Derelict Logs Recovered 1 | . . . . . . . . . . . 1 . . . . . . . . . . . . Drone Launches . | . . . . . . . . . . . . . . . . . . . . . . . . Drone Recoveries . | . . . . . . . . . . . . . . . . . . . . . . . . Exploration | -11 -10 -9 -9 -9 -8 -8 -7 -7 -7 -7 -6 -6 -5 -5 -5 -4 -4 -4 -4 -3 -3 -2 -1 ------------- Run | Yrd Mat Mat Min Exi Min Mat Fac Low Low Dat Pro Fac Fac Was Fac Fac Upp Upp War Pro Res Res Acc Turns Passed 23407 | 125 1296 2632 723 602 136 2226 1351 787 953 267 1119 1777 96 246 119 633 189 463 1091 437 1185 2404 2550 Spaces Moved 11848 | 69 507 1083 427 375 86 888 535 426 384 76 521 1009 83 189 142 592 190 387 786 211 365 1319 1198 Core 350 | 6 . . . . . . . 5 3 . . . . 101 142 88 . . . . . 5 . Treads 6814 | 63 507 1083 427 375 86 888 535 12 3 . . . . . . . . . 110 211 365 951 1198 Legs 2025 | . . . . . . . . 118 296 . 425 1009 83 88 . . . . . . . 6 . Wheels 2078 | . . . . . . . . 288 74 . . . . . . 463 190 387 676 . . . . Hover 360 | . . . . . . . . 3 . . . . . . . . . . . . . 357 . Flight 221 | . . . . . . . . . 8 76 96 . . . . 41 . . . . . . . Fastest Speed 35 | 50 160 160 160 160 160 160 165 125 125 355 120 113 113 50 50 35 95 93 90 170 166 58 166 Average Speed 157 | 150 160 160 160 160 160 209 211 169 231 355 185 135 113 95 69 90 95 94 110 170 193 148 167 Slowest Speed 550 | 160 160 240 160 160 160 240 250 550 355 355 355 270 113 187 100 110 96 109 190 170 250 270 170 Overloaded Moves . | . . . . . . . . . . . . . . . . . . . . . . . . Propulsion Burnouts . | . . . . . . . . . . . . . . . . . . . . . . . . Robots Hopped . | . . . . . . . . . . . . . . . . . . . . . . . . Potential Cave-ins 2 | . . 2 . . . . . . . . . . . . . . . . . . . . . Cave-ins Triggered . | . . . . . . . . . . . . . . . . . . . . . . . . Exploration Rate (%) 46 | 4 89 83 97 70 22 79 17 61 57 68 65 24 4 77 4 11 39 54 82 41 8 35 30 Regions Visited 23 Branch Regions 11 Pre-discovered Areas 2 | . . . 1 . . . . . . 1 . . . . . . . . . . . . . Known Exits Taken 4 | . . 1 . . . . . . . . 1 . . . . 1 . . . . 1 . . Unknown Exits Taken 17 | 1 1 . 1 1 1 1 1 1 1 1 . 1 . . 1 . 1 1 1 1 . 1 . Scrap Searched 14 | . . . 3 . . . . 1 5 . 1 . . . . . . 3 . 1 . . . Spaces Dug 100 | . . 66 . . . . . . . . . . . . . 4 . . 1 . 8 4 17 Terrain Destroyed 719 | . 8 178 . . . 207 50 . . . 3 7 . 1 . 4 . . 62 47 8 24 120 Melee 17 | . . . . . . . . . . . . . . . . 4 . . 1 . 8 4 . Projectile 170 | . . . . . . 47 . . . . 3 7 . 1 . . . . 8 6 . 20 78 AOE 531 | . 8 178 . . . 160 49 . . . . . . . . . . . 53 41 . . 42 Terrain Rammed . | . . . . . . . . . . . . . . . . . . . . . . . . Walls Destroyed . | . . . . . . . . . . . . . . . . . . . . . . . . Machines Disabled . | . . . . . . . . . . . . . . . . . . . . . . . . Actions | -11 -10 -9 -9 -9 -8 -8 -7 -7 -7 -7 -6 -6 -5 -5 -5 -4 -4 -4 -4 -3 -3 -2 -1 --------- Run | Yrd Mat Mat Min Exi Min Mat Fac Low Low Dat Pro Fac Fac Was Fac Fac Upp Upp War Pro Res Res Acc Total 15648 | 81 909 1867 466 379 85 1202 673 469 431 75 633 1334 85 215 163 661 195 457 970 271 765 1668 1594 Wait 2508 | 2 353 651 36 . . 233 85 . 18 . 46 215 . 2 16 28 . 24 30 35 341 123 270 Move 11825 | 68 506 1082 426 374 85 887 534 425 383 75 520 1008 83 188 141 591 189 386 785 210 364 1318 1197 Hop . | . . . . . . . . . . . . . . . . . . . . . . . . Pick Up 83 | 1 4 14 1 1 . 10 3 7 4 . 1 3 . . 1 3 . . 12 1 1 9 7 Fast Attach 198 | 7 . 6 . 1 . 4 1 10 4 . 7 15 1 3 2 15 1 6 29 3 9 65 9 Attach 40 | . . 4 . . . 3 4 4 2 . 1 3 1 1 . . . 2 2 2 1 5 5 Detach 21 | . . . . . . 1 . 1 . . . . . 1 . 1 . . 4 1 . 11 1 Swap 81 | . 4 17 . . . 12 . . 1 . 1 8 . 3 . 3 . 2 5 . 1 16 8 Drop 191 | . 1 23 1 3 . 16 2 7 3 . 3 12 . 1 3 6 . 3 34 2 4 58 9 Fire 437 | 3 41 70 . . . 35 41 2 10 . 22 53 . 15 . . . 1 18 16 . 27 83 Melee 185 | . . . . . . . . 11 6 . 12 13 . 1 . 14 5 29 13 1 44 36 . Ram . | . . . . . . . . . . . . . . . . . . . . . . . . Kick 4 | . . . . . . . . . . . . 4 . . . . . . . . . . . Crush 13 | . . . 2 . . 1 3 2 . . . . . . . . . . . . . . 5 Escape Stasis . | . . . . . . . . . . . . . . . . . . . . . . . . Rewire 38 | . . . . . . . . . . . . . . . . . . . 38 . . . . Trap 24 | . . . . . . . . . . . 20 . . . . . . 4 . . . . . Miscellaneous . | . . . . . . . . . . . . . . . . . . . . . . . . Route ------- -11/Scrapyard -10/Materials (discovered 4 exits: *Mat x2 / [*Min x2]) -9/Materials (discovered 3 exits: *Mat x2 / *Min) -9/Mines (discovered 3 exits: *Mat x2 / *Exi) -9/Exiles -8/Mines -8/Materials (discovered 3 exits: *Fac x2 / *Sto) -7/Factory (discovered 5 exits: *Fac x4 / *Low) -7/Lower Caves -7/Lower Caves -7/Data Miner -6/Proximity Caves -6/Factory -5/Factory -5/Waste -5/Factory (discovered 2 exits: *Fac / [*Upp]) -4/Factory (discovered 3 exits: *Upp x2 / Arm) -4/Upper Caves -4/Upper Caves -4/Warlord -3/Proximity Caves -3/Research (discovered 2 exits: *Res x2) -2/Research (discovered 2 exits: *Acc / *Tes) -1/Access To Epsilon Eridani History --------- Turn | Location | Event 6 | -11/Scrapyard | Discovered new exit (range 16) 126 | -11/Scrapyard | Entered Materials 304 | -10/Materials | Build established: Mutant 691 | -10/Materials | Discovered new exit (range 11) 795 | -10/Materials | Discovered new exit (range 15) 1049 | -10/Materials | Discovered new exit (range 5) 1230 | -10/Materials | Discovered new exit (range 16) 1422 | -10/Materials | Entered another Materials area 1422 | -9/Materials | Evolved 2 slots: Weapon x2 1736 | -9/Materials | Build established: Gunner 2755 | -9/Materials | Build established: Bomber 2934 | -9/Materials | Discovered new exit (range 15) 2992 | -9/Materials | Central database locked down 3044 | -9/Materials | Repaired Grenade Launcher 3359 | -9/Materials | Discovered new exit (range 16) 3761 | -9/Materials | Identified exit to Mines 3822 | -9/Materials | First assault squad dispatched 4054 | -9/Materials | Entered Mines 4093 | -9/Mines | Found a hidden stash of uninstalled traps 4226 | -9/Mines | Discovered new exit (range 6) 4318 | -9/Mines | Build established: Gunner 4647 | -9/Mines | Discovered new exit (range 16) 4673 | -9/Mines | Received a Rocket Launcher from a helpful Derelict 4736 | -9/Mines | Learned location of Storage (-8) 4770 | -9/Mines | Deemed a non-threat by the Exiles lab entrance 4770 | -9/Mines | Discovered new exit (range 5) 4777 | -9/Mines | Entered Exiles 4814 | -9/Exiles | Met 8R-AWN 4845 | -9/Exiles | Met EX-HEX 4891 | -9/Exiles | Met EX-BIN 4910 | -9/Exiles | Aligned with FarCom system 4912 | -9/Exiles | Given EX-Vault access code 4950 | -9/Exiles | Opened EX-Vault 4962 | -9/Exiles | Found AWS/Gauss 4999 | -9/Exiles | Warned to stay clear of 0b10 Research branches 5044 | -9/Exiles | Met EX-DEC 5158 | -9/Exiles | Discovered new exit (range 10) 5379 | -9/Exiles | Left Exiles lab with AWS/Gauss 5379 | -9/Exiles | Entered Mines 5392 | -8/Mines | Discovered new exit (range 6) 5515 | -8/Mines | Entered Materials 5515 | -8/Materials | Evolved 2 slots: Utility x2 5816 | -8/Materials | Build established: Hacker-Skirmisher 6188 | -8/Materials | Repaired Grenade Launcher 6255 | -8/Materials | Discovered new exit (range 9) 6287 | -8/Materials | Garrison activated, responded to threat 6448 | -8/Materials | Destroyed 10 combat bots 7098 | -8/Materials | Destroyed 8 combat bots 7228 | -8/Materials | Discovered new exit (range 4) 7314 | -8/Materials | Central database locked down 7372 | -8/Materials | Identified exit to Storage 7515 | -8/Materials | First assault squad dispatched 7518 | -8/Materials | Discovered new exit (range 14) 7553 | -8/Materials | AWS/Gauss suddenly broke down 7674 | -8/Materials | Sterilization system engaged 7674 | -8/Materials | Non-combat units ordered to evacuate 7741 | -8/Materials | Entered Factory 7741 | -7/Factory | Evolved 2 slots: Utility x2 7853 | -7/Factory | Build established: Hacker-Mutant 7997 | -7/Factory | Fabricated R-06 Scavenger? 8026 | -7/Factory | Discovered new exit (range 2) 8204 | -7/Factory | Identified exit to Factory 8540 | -7/Factory | Build established: Hacker-Skirmisher 8770 | -7/Factory | Lost 4 parts (1u3w) 9038 | -7/Factory | Build established: Hacker-Mutant 9082 | -7/Factory | Discovered new exit (range 5) 9092 | -7/Factory | Entered Lower Caves 9099 | -7/Lower Caves | Lost 3 parts (1n2w) 9311 | -7/Lower Caves | System corruption reached 10% 9626 | -7/Lower Caves | Encountered a Warlord checkpoint 9810 | -7/Lower Caves | Discovered new exit (range 8) 9837 | -7/Lower Caves | Build established: Hacker-Tank 9879 | -7/Lower Caves | Entered another Lower Caves area 10055 | -7/Lower Caves | Lost 4 parts (2n2w) 10219 | -7/Lower Caves | Build established: Hacker-Mutant 10775 | -7/Lower Caves | Discovered new exit (range 6) 10784 | -7/Lower Caves | Core integrity fell below 50% 10832 | -7/Lower Caves | Entered Data Miner 10832 | -7/Data Miner | Discovered new exit (range 6) 10900 | -7/Data Miner | Met Data Miner 10960 | -7/Data Miner | Learned location of Section 7 (-2) 10960 | -7/Data Miner | Acquired the access code to Warlord's prototype stash 11017 | -7/Data Miner | Received God Mode back door access code from Data Miner 11099 | -7/Data Miner | Entered Proximity Caves 11102 | -6/Proximity Caves | Spotter reported a threat 11102 | -6/Proximity Caves | Spotter reported a threat 12052 | -6/Proximity Caves | Learned location of 1 exit from Lower Caves 12197 | -6/Proximity Caves | Discovered exit to Factory (range 13) 12218 | -6/Proximity Caves | Entered Factory 12218 | -6/Factory | Evolved 2 slots: Power x1, Propulsion x1 12511 | -6/Factory | Build established: Hacker-Skirmisher 12568 | -6/Factory | Search patrols dispatched 12575 | -6/Factory | Watched by a mysterious "MATRIX" hacker 12594 | -6/Factory | Repaired Carbon-fiber Leg 12872 | -6/Factory | Lost 5 parts (1p1n3w) 13170 | -6/Factory | Central database locked down 13834 | -6/Factory | Fabricated H-66 Slayer? 13899 | -6/Factory | Discovered new exit (range 14) 13995 | -6/Factory | Entered another Factory area 13995 | -5/Factory | Accompanied by 2 allies 13995 | -5/Factory | Evolved 2 slots: Utility x1, Weapon x1 14091 | -5/Factory | Sucked down chute 14091 | -5/Factory | Entered Waste 14099 | -5/Waste | Spotted C-40 Crusher 14131 | -5/Waste | 2 allies followed down the chute 14165 | -5/Waste | Spotted C-40 Crusher 14173 | -5/Waste | Destroyed C-40 Crusher 14177 | -5/Waste | Destroyed C-40 Crusher 14194 | -5/Waste | Spotted C-40 Crusher 14236 | -5/Waste | Crushed by Compactor (1 part destroyed, 2 dropped) 14247 | -5/Waste | Destroyed C-40 Crusher 14255 | -5/Waste | Crushed by Compactor (1 part destroyed, 2 dropped) 14258 | -5/Waste | Crushed by Compactor (1 part destroyed, 1 dropped) 14261 | -5/Waste | Crushed by Compactor (1 part destroyed, 2 dropped) 14264 | -5/Waste | Crushed by Compactor (1 part destroyed, 1 dropped) 14278 | -5/Waste | Spotted C-40 Crusher 14285 | -5/Waste | Crushed by Compactor (1 part destroyed, 1 dropped) 14294 | -5/Waste | Spotted C-40 Crusher 14311 | -5/Waste | Discovered new exit (range 16) 14316 | -5/Waste | Lost 6 parts (1p2n2u1w) 14337 | -5/Waste | Entered Factory 14367 | -5/Factory | Discovered new exit (range 4) 14375 | -5/Factory | Discovered new exit (range 16) 14456 | -5/Factory | Entered another Factory area 14456 | -4/Factory | Evolved 2 slots: Propulsion x1, Utility x1 14476 | -4/Factory | Discovered new exit (range 5) 14544 | -4/Factory | Build established: Hacker-Mutant 14585 | -4/Factory | Identified exit to Upper Caves 14585 | -4/Factory | Identified exit to Armory 14773 | -4/Factory | Fabricated H-66 Slayer? 14941 | -4/Factory | Build established: Hacker-Gladiator 15089 | -4/Factory | Entered Upper Caves 15275 | -4/Upper Caves | Discovered new exit (range 5) 15278 | -4/Upper Caves | Attracted the attention of an 0b10 checkpoint 15278 | -4/Upper Caves | Entered another Upper Caves area 15416 | -4/Upper Caves | Spotted B-86 Titan 15477 | -4/Upper Caves | Lost 4 parts (1n2u1w) 15602 | -4/Upper Caves | Attracted the attention of an 0b10 base 15700 | -4/Upper Caves | Learned location of 1 exit from Research 15700 | -4/Upper Caves | Learned Factory trap positions 15700 | -4/Upper Caves | Learned Factory security intel 15700 | -4/Upper Caves | Learned Research garrison access intel 15700 | -4/Upper Caves | Learned Research trap positions 15700 | -4/Upper Caves | Learned Extension garrison access intel 15718 | -4/Upper Caves | Discovered new exit (range 9) 15741 | -4/Upper Caves | Entered Warlord 15865 | -4/Warlord | Met Warlord 15890 | -4/Warlord | Warlord's base attacked by MAIN.C 16087 | -4/Warlord | Opened Warlord's prototype stash 16101 | -4/Warlord | Found Prototype Device 16101 | -4/Warlord | Identified System Purifier 16107 | -4/Warlord | Found Prototype Reactor 16107 | -4/Warlord | Identified Vortex Chain Reactor 16112 | -4/Warlord | Found Prototype Processor 16112 | -4/Warlord | Identified Exp. Targeting Computer 16229 | -4/Warlord | Found Prototype Piercing Weapon 16229 | -4/Warlord | Identified Vortex Lance 16231 | -4/Warlord | Found Vortex Lance 16234 | -4/Warlord | Found Prototype Energy Cannon 16234 | -4/Warlord | Identified Vortex Cannon 16240 | -4/Warlord | Warlord forces counterattacked 16243 | -4/Warlord | Found Vortex Cannon 16282 | -4/Warlord | Found Prototype Special Weapon 16282 | -4/Warlord | Identified RU-N14's Throwing Claymores v3 16285 | -4/Warlord | Found RU-N14's Throwing Claymores v3 16287 | -4/Warlord | Found RU-N14's Throwing Claymores v3 16304 | -4/Warlord | Found RU-N14's Throwing Claymores v3 16306 | -4/Warlord | Found RU-N14's Throwing Claymores v3 16406 | -4/Warlord | Opened side exit 16425 | -4/Warlord | Spotted Striker 16431 | -4/Warlord | Spotted Striker 16431 | -4/Warlord | Spotted Striker 16432 | -4/Warlord | Spotted Striker 16462 | -4/Warlord | Destroyed Striker 16487 | -4/Warlord | Lost 5 allies 16518 | -4/Warlord | Found Prototype Ballistic Cannon 16518 | -4/Warlord | Identified Hvy. Autocannon 16565 | -4/Warlord | Warlord base infiltrated, sounded retreat 16565 | -4/Warlord | Spotted Striker 16566 | -4/Warlord | Spotted Striker 16610 | -4/Warlord | Destroyed Striker 16627 | -4/Warlord | Lost 4 allies 16724 | -4/Warlord | Spotted Striker 16739 | -4/Warlord | Spotted Executioner 16742 | -4/Warlord | Destroyed Executioner 16790 | -4/Warlord | Discovered new exit (range 14) 16832 | -4/Warlord | Entered Proximity Caves 16842 | -3/Proximity Caves | Lost 11 allies 16889 | -3/Proximity Caves | Found Alien Artifact 16889 | -3/Proximity Caves | Identified Dimensional Node Initializer 16889 | -3/Proximity Caves | Initialized slip node 16917 | -3/Proximity Caves | Build established: Hacker-Gunner 17247 | -3/Proximity Caves | Discovered new exit (range 11) 17269 | -3/Proximity Caves | Entered Research 17269 | -3/Research | Evolved 2 slots: Utility x2 17270 | -3/Research | Identified exit to Research 17271 | -3/Research | Loaded intel: 128 trap records 17272 | -3/Research | Loaded intel: 2 garrison access locations 17372 | -3/Research | Fabricated Combat Drone Bay? 17626 | -3/Research | Build established: Hacker-Gladiator 18025 | -3/Research | Repaired Imp. Force Booster 18224 | -3/Research | System corruption reached 10% 18375 | -3/Research | Repaired Greatsword 18429 | -3/Research | Discovered exit to Research (range 16) 18454 | -3/Research | Entered another Research area 18454 | -2/Research | Warlord forces began assault on 0b10 18454 | -2/Research | Evolved 2 slots: Propulsion x1, Utility x1 18564 | -2/Research | Research machine network offline 18866 | -2/Research | Spotted Striker 18914 | -2/Research | Core integrity fell below 50% 18950 | -2/Research | Lost 15 parts (1p4n7u3w) 19141 | -2/Research | Discovered new exit (range 7) 19150 | -2/Research | Identified exit to Testing 19173 | -2/Research | Borebot progress halted 19174 | -2/Research | Spotted Executioner 19315 | -2/Research | Borebot progress halted 19412 | -2/Research | Borebot progress halted 19484 | -2/Research | Spotted Executioner 19484 | -2/Research | Spotted Striker 19493 | -2/Research | Met DD-05H 19533 | -2/Research | Lost 6 allies 19538 | -2/Research | Found Imp. Powered Armor 19541 | -2/Research | Found Imp. Powered Armor 19548 | -2/Research | Met up with Warlord 19550 | -2/Research | Warlord invited to help at Command 19550 | -2/Research | Given Cave Seal Controls access code 19591 | -2/Research | Discovered new exit (range 14) 19611 | -2/Research | Spotted Striker 19615 | -2/Research | Spotted Striker 19668 | -2/Research | Destroyed Striker 19672 | -2/Research | Build established: Scavenger-Tank 19679 | -2/Research | Lost 4 parts (1p1u2w) 19686 | -2/Research | Lost 8 allies 19803 | -2/Research | Spotted Striker 19824 | -2/Research | Spotted Executioner 19896 | -2/Research | Lost 11 allies 20204 | -2/Research | Spotted Executioner 20204 | -2/Research | Spotted Executioner 20476 | -2/Research | Spotted Executioner 20480 | -2/Research | Destroyed Executioner 20512 | -2/Research | Found Prototype Processor 20512 | -2/Research | Identified Exp. Core Analyzer 20526 | -2/Research | Found Exp. Targeting Computer 20561 | -2/Research | Spotted Striker 20571 | -2/Research | Core integrity fell below 20% 20657 | -2/Research | Lost 3 allies 20858 | -2/Research | Entered Access 20858 | -1/Access | Evolved 2 slots: Propulsion x1, Utility x1 21948 | -1/Access | Garrison activated, responded to threat 22340 | -1/Access | Build established: Scavenger-Gunner 22582 | -1/Access | System corruption reached 10% 23002 | -1/Access | Energy Cycler disabled 23066 | -1/Access | Destroyed 7 combat bots 23070 | -1/Access | Lost 3 parts (2n1w) 23108 | -1/Access | First assault squad dispatched 23208 | -1/Access | Discovered new exit (range 8) 23382 | -1/Access | Incoming assault squad redirected 23408 | *** | Escaped! Last Messages --------------- redirecting assault. 23388_ Enh. Quantum Rifle destroyed. 23395_ Quantum Reactor destroyed. 23398_ 7NKXS|,IJQO1CATQ |PVVZF M5M